Cogmind - Beta 14 @@@ ROGUE MODE // 2024.10.17 @ 07:02:56 Player: XDRM Result: Destroyed by YI-UF0 with YI-UF0's Doublenader Performance ------------- Evolutions (0) 0 Regions Visited (2) 400 Robots Destroyed (24) 120 Value Destroyed (448) 448 Prototype IDs (1) 20 Alien Tech Used (0) 0 Bonus (50) 50 TOTAL SCORE: 1038 Bonus ------- Follower Combat Kills 50 Cogmind --------- Core Integrity 0/250 Matter 266/300 Energy 89/100 System Corruption 2% Temperature Cool (0) Movement Treading (160) Location -10/Mines Parts ------- > --- POWER (1) -------- (None) > --- PROPULSION (2) --- Light Treads > --- UTILITY (2) ------ Large Storage Unit > --- WEAPON (2) ------- (None) > --- INVENTORY (15) --- Ion Engine Light Treads Heat Sink Improved Heat Sink Small Storage Unit Medium Storage Unit Utility Shielding Hacking Suite Peak State ------------ > --- POWER ------------ Ion Engine > --- PROPULSION ------- Light Treads Light Treads > --- UTILITY ---------- Large Storage Unit Experimental Sensor Array > --- WEAPON ----------- Assault Rifle Grenade Launcher > --- INVENTORY -------- Ion Engine Light Treads Light Treads Heat Sink Improved Heat Sink Small Storage Unit Medium Storage Unit Utility Shielding Hacking Suite EM Pulse Gun EM Pulse Gun Light Assault Rifle Mining Laser [Rating: 16] Favorites ----------- Power Ion Engine Engine Ion Engine Propulsion Light Treads Treads Light Treads Utility Large Storage Unit Device Experimental Sensor Array Storage Large Storage Unit Weapon Grenade Launcher Energy Gun EM Pulse Gun Ballistic Gun Assault Rifle Launcher Grenade Launcher Special Weapon Mining Laser Build | -11 -10 -10 ------- Run | Yrd Mat Min Slots Evolved . | . . . Power . | . . . Propulsion . | . . . Utility . | . . . Weapon . | . . . Parts Attached 16 | 6 4 6 Power 1 | 1 . . Engine 1 | 1 . . Core . | . . . Reactor . | . . . Propulsion 3 | 2 . 1 Treads 3 | 2 . 1 Leg . | . . . Wheel . | . . . Hover . | . . . Flight . | . . . Utility 4 | 1 2 1 Device 1 | . . 1 Storage 3 | 1 2 . Processor . | . . . Hackware . | . . . Protection . | . . . Artifact . | . . . Weapon 8 | 2 2 4 Energy Gun 4 | 2 . 2 Energy Cannon . | . . . Ballistic Gun 2 | . 1 1 Ballistic Cannon . | . . . Launcher 1 | . 1 . Special Weapon 1 | . . 1 Impact Weapon . | . . . Slashing Weapon . | . . . Piercing Weapon . | . . . Special Melee Weapon . | . . . Unidentified Prototypes 1 | . . 1 Parts Lost 10 | . . 10 Power 1 | . . 1 Propulsion 2 | . . 2 Utility 1 | . . 1 Weapon 6 | . . 6 Highest Loss Streak 10 | . . 10 To Critical Strikes . | . . . Average Slot Usage (%) 90 | . 85 94 Engine 13 | . 14 13 Treads 27 | . 28 26 Device 5 | . . 11 Storage 14 | . 14 14 Energy Gun 3 | . 6 . Ballistic Gun 11 | . 8 14 Launcher 12 | . 12 12 Peak Build Rating 16 | 6 8 16 Average Rating 9 | 4 6 14 On Entrance 4 | . 6 7 Naked Turns . | . . . Heaviest Build 31 | 14 30 31 Greatest Support 40 | 40 40 40 Greatest Overweight (x) 1 | . . 1 Average Overweight (x) . | . . . Largest Inventory Capacity 15 | 8 15 15 Average Capacity 12 | 7 9 15 Most Carried 13 | 4 12 13 Average Carried 9 | 1 6 12 Final Capacity 15 | 8 15 15 Final Carried 12 | 2 12 8 Class Distribution -------------------- 100% | Mutant Dominant Class ---------------- Mutant | -10/Materials Mutant | -10/Mines Resources | -11 -10 -10 ----------- Run | Yrd Mat Min Matter Collected 554 | 239 185 130 Remotely . | . . . Salvage Created 573 | . 473 100 Parts 42 | . 29 13 Haulers Intercepted 1 | . 1 . Recyclers Shooed 2 | . 2 . Parts Field Recycled . | . . . Retrieved Matter . | . . . Parts Self-Destructed . | . . . Prevented . | . . . Kills | -11 -10 -10 ------- Run | Yrd Mat Min Combat Hostiles Destroyed 15 | . 10 5 Guns 2 | . 2 . AOE 13 | . 8 5 Classes Destroyed 9 | . 8 1 Worker 1 | . 1 . Builder 1 | . 1 . Tunneler 1 | . . 1 Hauler 1 | . 1 . Recycler 2 | . 2 . Operator 2 | . 2 . Watcher 1 | . 1 . Swarmer 9 | . 6 3 Grunt 6 | . 4 2 Best Kill Streak 7 | . 7 5 Combat Bots Only 4 | . 3 4 Max Kills in Single Turn 4 | . 2 4 Gunslinging . | . . . Exploded 3 | . 2 3 Melee . | . . . Uniques/NPCs Destroyed . | . . . Combat | -11 -10 -10 -------- Run | Yrd Mat Min Hostile Shots Fired 71 | . 21 50 Missed 30 | . 8 22 Damage Taken 1066 | . 139 927 Core 281 | . 35 246 Absorbed by Shields . | . . . Core Remaining (%) 100 | 100 . . Volleys Fired 49 | . 30 19 Largest 2 | . 2 2 Hottest 80 | . 80 60 Shots Fired 71 | . 42 29 Gun 56 | . 32 24 Cannon . | . . . Launcher 15 | . 10 5 Special . | . . . Kinetic 44 | . 24 20 Thermal . | . . . Explosive 15 | . 10 5 Electromagnetic 12 | . 8 4 Robot Hit Streak 8 | . 7 8 Robot Miss Streak 3 | . 3 1 Penetration Max . | . . . Secondary Targets . | . . . Shots Hit Robots 37 | . 23 14 Core Hits 46 | . 32 14 Critical Kills . | . . . Critical Parts Destroyed . | . . . Critical Strikes . | . . . Melee Attacks . | . . . Impact . | . . . Slashing . | . . . Piercing . | . . . Sneak Attacks . | . . . Combat Hostiles . | . . . Follow-up Attacks . | . . . Damage Inflicted 1465 | . 974 491 Guns 397 | . 261 136 Cannons . | . . . Explosions 1068 | . 713 355 Melee . | . . . Ramming . | . . . Kinetic 309 | . 207 102 Thermal 93 | . . 93 Explosive 840 | . 578 262 Electromagnetic 223 | . 189 34 Impact . | . . . Slashing . | . . . Piercing . | . . . Highest Corruption 2 | . 2 2 Average Corruption 1 | . 1 2 Corruption Purged . | . . . Corruption Blocked . | . . . Effects 5 | . 2 3 Message Errors 2 | . 1 1 Matter Fused 2 | . 1 1 Misfires 1 | . . 1 Overload Shots . | . . . Overflow Damage 4 | . 4 . Projectiles . | . . . Explosions 4 | . 4 . Melee . | . . . Knockbacks . | . . . Impact . | . . . Kinetic . | . . . Secondary . | . . . Self-Inflicted Damage . | . . . Shots . | . . . Rammed . | . . . Targets Rammed . | . . . Kicked . | . . . Crushed . | . . . Highest Temperature 28 | . 28 20 Average Temperature 10 | . 9 13 Received Heat Transfer 78 | . 72 6 Siege Activations . | . . . Robots Corrupted . | . . . Combat Hostiles . | . . . Parts Fried 1 | . 1 . Impact Corruptions . | . . . Robots Melted . | . . . Combat Hostiles . | . . . Parts Melted . | . . . Heat Transferred 100 | . . 100 Parts Sabotaged . | . . . Parts Stolen . | . . . Parts Stripped . | . . . Power Chain Reactions . | . . . Alert | -11 -10 -10 ------- Run | Yrd Mat Min Peak Influence 351 | . 351 314 Initial 87 | . . 87 Average 171 | . 179 191 Maximum Alert Level 1 | . 1 1 Low Security (%) 61 | 100 51 64 Level 1 38 | . 48 35 Level 2 . | . . . Level 3 . | . . . Level 4 . | . . . Level 5 . | . . . High Security . | . . . Max Security . | . . . Squads Dispatched 2 | . 2 . Investigation . | . . . Extermination . | . . . Reinforcement 2 | . 2 . Assault . | . . . Garrison . | . . . Intercept . | . . . Searches Triggered . | . . . Construction Impeded . | . . . Haulers Reinforced . | . . . Active Scanning Responses . | . . . Cargo Convoy Interrupts . | . . . Stealth | -11 -10 -10 --------- Run | Yrd Mat Min Distress Signals 4 | . 4 . Communications Jammed . | . . . Distress Signals . | . . . Times Spotted 26 | . 18 8 Peak Tracking Total 5 | . 3 5 Tactical Retreats . | . . . Traps | -11 -10 -10 ------- Run | Yrd Mat Min Traps Triggered 2 | . 2 . Indirectly . | . . . Trap Hack Attempts . | . . . Triggered . | . . . Disarmed . | . . . Reprogrammed . | . . . Reused . | . . . Traps Extracted . | . . . Installed . | . . . Triggered . | . . . Machines | -11 -10 -10 ---------- Run | Yrd Mat Min Machines Disabled 4 | . 3 1 Max in Single Turn 1 | . 1 1 Machines Repaired . | . . . Machines Dismantled . | . . . Machines Sabotaged . | . . . Overloaded Fab Kills . | . . . Hacking | -11 -10 -10 --------- Run | Yrd Mat Min Machines Accessed 4 | . 4 . Terminals 4 | . 4 . Fabricators . | . . . Repair Stations . | . . . Recycling Units . | . . . Scanalyzers . | . . . Garrison Access . | . . . Total Hacks 6 | . 6 . Successful 4 | . 4 . Failed 2 | . 2 . Catastrophic . | . . . Database Lockouts . | . . . Manual . | . . . Terminals 6 | . 6 . Fabricators . | . . . Repair Stations . | . . . Recycling Units . | . . . Scanalyzers . | . . . Garrison Access . | . . . Terminal Hacks 4 | . 4 . Record 2 | . 2 . Robot Analysis 1 | . 1 . Alert Level 1 | . 1 . Fabricator Hacks . | . . . Repair Station Hacks . | . . . Recycling Unit Hacks . | . . . Scanalyzer . | . . . Garrison Access Hacks . | . . . Unauthorized Hacks . | . . . Terminals . | . . . Fabricators . | . . . Repair Stations . | . . . Recycling Units . | . . . Scanalyzers . | . . . Garrison Access . | . . . Data Cores Recovered . | . . . Used . | . . . Hacking Detections 2 | . 2 . Full Trace Events . | . . . Feedback Events . | . . . Feedback Blocked . | . . . Robot Schematics Acquired . | . . . Robots Built . | . . . Authchips . | . . . Time . | . . . Total Robot Build Rating . | . . . Part Schematics Acquired . | . . . Parts Built . | . . . Authchips . | . . . Time . | . . . Total Part Build Rating . | . . . Parts Repaired . | . . . Time . | . . . Parts Recycled . | . . . Recycled Matter . | . . . Retrieved Matter . | . . . Retrieved Components . | . . . Parts Scanalyzed . | . . . Part Schematics Acquired . | . . . Parts Damaged . | . . . Bothacking | -11 -10 -10 ------------ Run | Yrd Mat Min Used RIF Installer . | . . . Robots Hacked . | . . . Non-combat . | . . . Combat . | . . . Robot Hacks Applied . | . . . Relay Couplers Released . | . . . Fabnet Peak Effective % . | . . . Robots Rewired . | . . . Allies Hacked . | . . . Hacks Repelled . | . . . Allies | -11 -10 -10 -------- Run | Yrd Mat Min Total Allies 1 | . . 1 Largest Group 1 | . . 1 Highest-Rated Group 31 | . . 31 Highest-Rated Ally 31 | . . 31 Total Orders . | . . . Ally Attacks 4 | . . 4 Total Damage 86 | . . 86 Kills 2 | . . 2 Allies Corrupted . | . . . Allies Melted . | . . . Intel | -11 -10 -10 ------- Run | Yrd Mat Min Robot Analysis Total 1 | . 1 . Derelict Logs Recovered 1 | . . 1 Drone Launches . | . . . Drone Recoveries . | . . . Exploration | -11 -10 -10 ------------- Run | Yrd Mat Min Turns Passed 1082 | 81 492 509 Spaces Moved 582 | 45 252 285 Core 2 | 2 . . Treads 580 | 43 252 285 Legs . | . . . Wheels . | . . . Hover . | . . . Flight . | . . . Fastest Speed 50 | 50 160 160 Average Speed 159 | 155 160 160 Slowest Speed 240 | 160 160 240 Overloaded Moves . | . . . Propulsion Burnouts . | . . . Robots Hopped . | . . . Cave-ins Triggered . | . . . Exploration Rate (%) 49 | 4 60 83 Regions Visited 2 Branch Regions 1 Pre-discovered Areas 1 | . . 1 Known Exits Taken . | . . . Unknown Exits Taken 2 | 1 1 . Scrap Searched . | . . . Spaces Dug . | . . . Terrain Destroyed 83 | . 37 46 Melee . | . . . Projectile . | . . . AOE 83 | . 37 46 Terrain Rammed . | . . . Walls Destroyed . | . . . Machines Disabled . | . . . Actions | -11 -10 -10 --------- Run | Yrd Mat Min Total 663 | 54 298 311 Wait 3 | . 3 . Move 580 | 44 251 285 Hop . | . . . Pick Up 13 | 4 8 1 Fast Attach 7 | 4 2 1 Attach 7 | 2 . 5 Detach 2 | . 2 . Swap 2 | . 2 . Drop . | . . . Fire 49 | . 30 19 Melee . | . . . Ram . | . . . Kick . | . . . Crush . | . . . Escape Stasis . | . . . Rewire . | . . . Trap . | . . . Miscellaneous . | . . . Route ------- -11/Scrapyard -10/Materials (discovered 4 exits: [*Mat] / [*Min x2] / [*Sub]) -10/Mines (discovered 2 exits: [*Mat x2]) History --------- Turn | Location | Event 6 | -11/Scrapyard | Discovered new exit (range 15) 82 | -11/Scrapyard | Entered Materials 271 | -10/Materials | Discovered new exit (range 12) 275 | -10/Materials | Discovered new exit (range 15) 296 | -10/Materials | Discovered new exit (range 12) 301 | -10/Materials | Build established: Mutant 468 | -10/Materials | Discovered new exit (range 15) 574 | -10/Materials | Entered Mines 577 | -10/Mines | Received a Mining Laser from a helpful Derelict 623 | -10/Mines | Found a damaged Exp. Sensor Array with a note attached 626 | -10/Mines | Found Prototype Device 626 | -10/Mines | Identified Exp. Sensor Array 735 | -10/Mines | Discovered new exit (range 16) 780 | -10/Mines | Learned location of Zion (-6) 797 | -10/Mines | Discovered new exit (range 10) 1072 | -10/Mines | Core integrity fell below 50% 1080 | -10/Mines | Core integrity fell below 20% 1083 | -10/Mines | Destroyed by YI-UF0 with YI-UF0's Doublenader Last Messages --------------- 01041_ Grenade Launcher destroyed. 01042_ YI-UF0 mumbles something. 01045_ Assault Rifle destroyed. 01047_ The unstable cave ceiling collapses. 01047_ Lgt. Treads destroyed. 01047_ EM Pulse Gun destroyed. 01049_ The unstable cave ceiling collapses. 01057_ EM Pulse Gun destroyed. 01059_ YI-UF0 mumbles something. 01060_ The unstable cave ceiling collapses. 01061_ Ion Engine destroyed. 01061_ Destroyed Shock Absorption System. 01062_ The unstable cave ceiling collapses. 01063_ YI-UF0 mumbles something. 01063_ The unstable cave ceiling collapses. 01067_ Lgt. Treads destroyed. 01068_ The unstable cave ceiling collapses. 01081_ Lgt. Assault Rifle destroyed. 01081_ Mining Laser destroyed. 01083_ The unstable cave ceiling collapses. Map ----- +----------------------------------------------------+ | ???????# ?????#### ## | | ???????# # ?????# ####### ### | | ???????# # #?????# ####?????## ### | | ???????# ?????# #?????????# #?## | | ???????## ####??# #?????????# ##?? | | ???????# #??# #?????????# #?? | | ??????## # #### #?????????## #?? | | ??????# ! #??????????#####?? | | ????#### % #????????????????? | | ????#"" # #######????????????????? | | ???##" # #?????????????????????? | | ???#" ### #?????????????????????? | | ???# ##?##?????????????????????# | | ???# ;#######??????????????????# | | ???# #??????????????????# | | ???## #??????????????????# | | ????# # #### #?????????????????## | | ##### # # #??????????????????????# | | # ## # ##???#?????????????????# | | # % #?? #####?????????????# | | # ### ##????????????# | | #????????????# | | # #????????????# | | #?????????????# | | # #???????????????## | | @ g #????????????????? | | # #????????????????? | | # ##????????????????? | | # ####?????????????????? | | # ####????????????????????? | | # # ##???????????????????????? | | # #### #####????????????????????????? | | ???#####?????????????????????????????? | | | | | | | | | | | | | | | | | | | | | | | | | | | | | | | | | | | +----------------------------------------------------+ Best States ------------- Heat Dissipation 25 Energy Generation 10 Energy Capacity 250 Matter Stores 300 Matter Capacity 300 Sight Range 16 Robot Scan Range 20 Terrain Scan Density 10 Evasion (%) 40 Recoil Reduction 2 Item Schematics ----------------- None Robot Schematics ------------------ None Fabricated ------------ Nothing Alien Tech Used ----------------- None Achievements -------------- None Challenges ------------ None Game ------ Seed ScatterSwordScreen Manual? 0 Play Time 00:14:57 Cumulative 36.7 hours Start 2024.10.17 @ 06:48:53 End 2024.10.17 @ 07:02:56 Sessions 1 Manual Loads 0 Difficulty Rogue Special Mode None Game No. 25 Rogue 25 Adventurer 0 Explorer 0 Win Type - Total 0 Types 0/0/0/0/0/0/0/0/0 Lore% 15 Gallery% 27 Achievement% 28 Wizard Run 0 Options --------- Layout 1 ASCII 0 Keyboard 0 Movement Mouse Keybinds 0 Fullscreen 2 Font 24/X11 Map View 50x35 Zoom Use 0% Tactical HUD 1 Map Filters NONE Filters NONE Steam 1 RUN: 8a5cd3b4-a303-4d4f-a9dc-3c6b71f68bd4